[Event "Titled Tuesday Blitz April 12 Late 2022"]
[White "Wang, Jalen"]
[Black "Zherebtsova, Alexandra"]
[WhiteFideId "2078058"]
[BlackFideId "24129518"]
[WhiteElo "2084"]
[BlackElo "2025"]
[Result "1-0"]
[Round "04"]
[TimeControl "180+1"]
[Date "2022.04.13"]
[WhiteClock "0:01:22"]
[BlackClock "0:00:03"]

1. d4 {[%clk 0:03:00]}  d5 {[%clk 0:02:59]} 2. Bf4 {[%clk 0:03:01]}  Nf6 {[%clk 0:02:48]} 3. e3 {[%clk 0:03:01]}  c5 {[%clk 0:02:45]} 4. c3 {[%clk 0:03:01]}  Nc6 {[%clk 0:02:42]} 5. Nd2 {[%clk 0:02:58]}  Qb6 {[%clk 0:02:39]} 6. Qb3 {[%clk 0:02:57]}  c4 {[%clk 0:02:33]} 7. Qc2 {[%clk 0:02:57]}  g6 {[%clk 0:02:29]} 8. e4 {[%clk 0:02:56]}  Nxe4 {[%clk 0:02:16]} 9. Nxe4 {[%clk 0:02:54]}  dxe4 {[%clk 0:02:16]} 10. Bxc4 {[%clk 0:02:54]}  Bg7 {[%clk 0:02:09]} 11. Ne2 {[%clk 0:02:51]}  O-O {[%clk 0:02:03]} 12. O-O {[%clk 0:02:51]}  e5 {[%clk 0:01:55]} 13. dxe5 {[%clk 0:02:47]}  Nxe5 {[%clk 0:01:55]} 14. Bb3 {[%clk 0:02:46]}  Nd3 {[%clk 0:01:54]} 15. Be3 {[%clk 0:02:45]}  Qa6 {[%clk 0:01:35]} 16. Ng3 {[%clk 0:02:41]}  Re8 {[%clk 0:01:21]} 17. Rad1 {[%clk 0:02:39]}  Be6 {[%clk 0:00:51]} 18. Nxe4 {[%clk 0:02:33]}  Bxb3 {[%clk 0:00:47]} 19. axb3 {[%clk 0:02:33]}  Rxe4 {[%clk 0:00:45]} 20. Qxd3 {[%clk 0:02:32]}  Qxd3 {[%clk 0:00:42]} 21. Rxd3 {[%clk 0:02:33]}  Re7 {[%clk 0:00:41]} 22. Rfd1 {[%clk 0:02:32]}  h5 {[%clk 0:00:31]} 23. Rd7 {[%clk 0:02:30]}  Rae8 {[%clk 0:00:27]} 24. Kf1 {[%clk 0:02:29]}  a6 {[%clk 0:00:26]} 25. Bc5 {[%clk 0:02:19]}  Re2 {[%clk 0:00:20]} 26. R7d2 {[%clk 0:02:14]}  Rxd2 {[%clk 0:00:19]} 27. Rxd2 {[%clk 0:02:15]}  Rc8 {[%clk 0:00:18]} 28. Be3 {[%clk 0:02:13]}  Rc7 {[%clk 0:00:18]} 29. Rd8+ {[%clk 0:02:10]}  Kh7 {[%clk 0:00:17]} 30. Ke2 {[%clk 0:02:11]}  Re7 {[%clk 0:00:17]} 31. Kd3 {[%clk 0:02:10]}  Bf6 {[%clk 0:00:17]} 32. Rd6 {[%clk 0:02:05]}  Kg7 {[%clk 0:00:15]} 33. Bd4 {[%clk 0:02:01]}  Bxd4 {[%clk 0:00:14]} 34. Rxd4 {[%clk 0:02:02]}  Rc7 {[%clk 0:00:13]} 35. Re4 {[%clk 0:02:01]}  Kf6 {[%clk 0:00:13]} 36. Re2 {[%clk 0:02:02]}  Kf5 {[%clk 0:00:09]} 37. Kd4 {[%clk 0:02:02]}  Kf4 {[%clk 0:00:07]} 38. b4 {[%clk 0:02:01]}  h4 {[%clk 0:00:06]} 39. h3 {[%clk 0:02:01]}  g5 {[%clk 0:00:06]} 40. Kd5 {[%clk 0:02:00]}  f5 {[%clk 0:00:06]} 41. Kd6 {[%clk 0:01:51]}  Rc6+ {[%clk 0:00:06]} 42. Kd5 {[%clk 0:01:51]}  Rc7 {[%clk 0:00:06]} 43. Kd6 {[%clk 0:01:46]}  Rc6+ {[%clk 0:00:06]} 44. Kd7 {[%clk 0:01:45]}  g4 {[%clk 0:00:06]} 45. Rd2 {[%clk 0:01:33]}  gxh3 {[%clk 0:00:05]} 46. gxh3 {[%clk 0:01:34]}  Kf3 {[%clk 0:00:05]} 47. Rd4 {[%clk 0:01:28]}  Kxf2 {[%clk 0:00:03]} 48. Rxh4 {[%clk 0:01:27]}  Kg3 {[%clk 0:00:03]} 49. Rh5 {[%clk 0:01:24]}  f4 {[%clk 0:00:03]} 50. Rf5 {[%clk 0:01:24]}  f3 {[%clk 0:00:03]} 51. h4 {[%clk 0:01:22]}  f2 {[%clk 0:00:03]} 52. h5 {[%clk 0:01:22]}  Kg2 {[%clk 0:00:03]} 53. Rg5+ {[%clk 0:01:22]} 1-0


[Site "https://www.chess.com"]

[Event "Titled Tuesday Blitz April 12 Late 2022"]
[White "Ward, Ieuan C"]
[Black "Pourkashiyan, Atousa"]
[WhiteFideId "406627"]
[BlackFideId "12502014"]
[WhiteElo "2276"]
[BlackElo "2247"]
[Result "1-0"]
[Round "04"]
[TimeControl "180+1"]
[Date "2022.04.13"]
[WhiteClock "0:00:48"]
[BlackClock "0:00:22"]

1. d4 {[%clk 0:02:58]}  Nf6 {[%clk 0:02:55]} 2. c4 {[%clk 0:02:58]}  e6 {[%clk 0:02:54]} 3. Nf3 {[%clk 0:02:57]}  d5 {[%clk 0:02:53]} 4. Nc3 {[%clk 0:02:57]}  Nbd7 {[%clk 0:02:52]} 5. Bg5 {[%clk 0:02:56]}  Be7 {[%clk 0:02:52]} 6. e3 {[%clk 0:02:56]}  O-O {[%clk 0:02:49]} 7. Rc1 {[%clk 0:02:56]}  a6 {[%clk 0:02:10]} 8. cxd5 {[%clk 0:02:52]}  exd5 {[%clk 0:02:09]} 9. Bd3 {[%clk 0:02:51]}  c6 {[%clk 0:02:08]} 10. O-O {[%clk 0:02:51]}  Re8 {[%clk 0:02:01]} 11. a3 {[%clk 0:02:50]}  Nf8 {[%clk 0:01:57]} 12. Ne5 {[%clk 0:02:45]}  N6d7 {[%clk 0:01:37]} 13. Bxe7 {[%clk 0:02:44]}  Qxe7 {[%clk 0:01:36]} 14. Nf3 {[%clk 0:02:29]}  Ng6 {[%clk 0:01:35]} 15. Qc2 {[%clk 0:02:26]}  Nf6 {[%clk 0:01:26]} 16. Rfe1 {[%clk 0:02:24]}  Bg4 {[%clk 0:01:09]} 17. Nd2 {[%clk 0:02:24]}  Nh4 {[%clk 0:01:09]} 18. h3 {[%clk 0:02:15]}  Bd7 {[%clk 0:01:03]} 19. e4 {[%clk 0:02:13]}  dxe4 {[%clk 0:01:01]} 20. Ndxe4 {[%clk 0:02:12]}  Nxe4 {[%clk 0:01:00]} 21. Nxe4 {[%clk 0:02:02]}  Kh8 {[%clk 0:01:00]} 22. Qd2 {[%clk 0:01:44]}  Bxh3 {[%clk 0:00:58]} 23. Ng5 {[%clk 0:01:31]}  Qf6 {[%clk 0:00:44]} 24. Nxh3 {[%clk 0:01:27]}  Qxd4 {[%clk 0:00:35]} 25. Qf4 {[%clk 0:01:13]}  Qxd3 {[%clk 0:00:28]} 26. Qxh4 {[%clk 0:01:12]}  Qd2 {[%clk 0:00:27]} 27. Rxe8+ {[%clk 0:00:51]}  Rxe8 {[%clk 0:00:27]} 28. Rf1 {[%clk 0:00:52]}  h6 {[%clk 0:00:24]} 29. Qb4 {[%clk 0:00:49]}  b5 {[%clk 0:00:22]} 30. Qxd2 {[%clk 0:00:48]} 1-0


[Site "https://www.chess.com"]

[Event "Titled Tuesday Blitz April 12 Late 2022"]
[White "Zhigalko, Sergei"]
[Black "Fedoseev, Vladimir"]
[WhiteFideId "13502956"]
[BlackFideId "24130737"]
[WhiteElo "2662"]
[BlackElo "2726"]
[Result "1-0"]
[Round "04"]
[TimeControl "180+1"]
[Date "2022.04.12"]
[WhiteClock "0:00:04"]
[BlackClock "0:00:08"]

1. e4 {[%clk 0:03:00]}  g6 {[%clk 0:02:59]} 2. d4 {[%clk 0:03:01]}  Bg7 {[%clk 0:03:00]} 3. Nc3 {[%clk 0:03:02]}  d6 {[%clk 0:03:01]} 4. Nf3 {[%clk 0:03:02]}  a6 {[%clk 0:03:01]} 5. Be3 {[%clk 0:03:02]}  b5 {[%clk 0:03:01]} 6. a4 {[%clk 0:03:03]}  b4 {[%clk 0:03:01]} 7. Ne2 {[%clk 0:03:04]}  Bb7 {[%clk 0:03:01]} 8. Ng3 {[%clk 0:03:05]}  Nd7 {[%clk 0:03:01]} 9. Bd3 {[%clk 0:03:05]}  c5 {[%clk 0:03:01]} 10. c3 {[%clk 0:03:05]}  cxd4 {[%clk 0:02:35]} 11. cxd4 {[%clk 0:03:05]}  Ngf6 {[%clk 0:02:33]} 12. a5 {[%clk 0:03:04]}  h5 {[%clk 0:02:29]} 13. Qb3 {[%clk 0:02:50]}  h4 {[%clk 0:02:27]} 14. Ng5 {[%clk 0:02:49]}  e6 {[%clk 0:02:19]} 15. Ne2 {[%clk 0:02:45]}  Rb8 {[%clk 0:02:04]} 16. Nf4 {[%clk 0:01:23]}  Qe7 {[%clk 0:01:55]} 17. O-O {[%clk 0:00:42]}  e5 {[%clk 0:00:59]} 18. Bc4 {[%clk 0:00:42]}  Rf8 {[%clk 0:00:49]} 19. Bxf7+ {[%clk 0:00:38]}  Rxf7 {[%clk 0:00:39]} 20. Nxg6 {[%clk 0:00:38]}  d5 {[%clk 0:00:25]} 21. Nxe7 {[%clk 0:00:37]}  Rxe7 {[%clk 0:00:26]} 22. dxe5 {[%clk 0:00:27]}  Nxe5 {[%clk 0:00:25]} 23. f4 {[%clk 0:00:25]}  Nc4 {[%clk 0:00:19]} 24. e5 {[%clk 0:00:26]}  Ng4 {[%clk 0:00:18]} 25. Bc5 {[%clk 0:00:21]}  Bf8 {[%clk 0:00:18]} 26. Qd3 {[%clk 0:00:18]}  Rc8 {[%clk 0:00:12]} 27. Qg6+ {[%clk 0:00:16]}  Kd8 {[%clk 0:00:13]} 28. Bxb4 {[%clk 0:00:13]}  Rc6 {[%clk 0:00:11]} 29. Qg8 {[%clk 0:00:11]}  Ke8 {[%clk 0:00:10]} 30. Bxe7 {[%clk 0:00:11]}  Kxe7 {[%clk 0:00:10]} 31. Qf7+ {[%clk 0:00:12]}  Kd8 {[%clk 0:00:11]} 32. Qxf8+ {[%clk 0:00:12]}  Kc7 {[%clk 0:00:11]} 33. Rac1 {[%clk 0:00:09]}  Nge3 {[%clk 0:00:11]} 34. Qe7+ {[%clk 0:00:07]}  Kb8 {[%clk 0:00:11]} 35. Rfe1 {[%clk 0:00:07]}  Rc7 {[%clk 0:00:11]} 36. Qf8+ {[%clk 0:00:06]}  Rc8 {[%clk 0:00:10]} 37. Qb4 {[%clk 0:00:06]}  d4 {[%clk 0:00:10]} 38. b3 {[%clk 0:00:03]}  Nd5 {[%clk 0:00:09]} 39. Qxc4 {[%clk 0:00:03]}  Rxc4 {[%clk 0:00:09]} 40. Rxc4 {[%clk 0:00:04]}  Nxf4 {[%clk 0:00:09]} 41. e6 {[%clk 0:00:04]}  Bc6 {[%clk 0:00:07]} 42. Rxc6 {[%clk 0:00:04]}  Nxe6 {[%clk 0:00:07]} 43. Rcxe6 {[%clk 0:00:04]}  Kb7 {[%clk 0:00:08]} 1-0


[Site "https://www.chess.com"]

[Event "Titled Tuesday Blitz April 12 Late 2022"]
[White "Bas Mas, Jose Joaquin"]
[Black "Iskusnyh, Sergei"]
[WhiteFideId "22219064"]
[BlackFideId "4120027"]
[WhiteElo "2212"]
[BlackElo "2492"]
[Result "1-0"]
[Round "05"]
[TimeControl "180+1"]
[Date "2022.04.13"]
[WhiteClock "0:00:02"]
[BlackClock "0:00:04"]

1. e4 {[%clk 0:03:00]}  e6 {[%clk 0:03:00]} 2. Nf3 {[%clk 0:02:57]}  d5 {[%clk 0:03:00]} 3. e5 {[%clk 0:02:57]}  c5 {[%clk 0:02:59]} 4. b4 {[%clk 0:02:58]}  d4 {[%clk 0:02:51]} 5. Bb2 {[%clk 0:02:54]}  Nc6 {[%clk 0:02:36]} 6. b5 {[%clk 0:02:51]}  Nb4 {[%clk 0:02:15]} 7. a3 {[%clk 0:02:38]}  Nd5 {[%clk 0:02:15]} 8. c4 {[%clk 0:02:33]}  dxc3 {[%clk 0:02:07]} 9. dxc3 {[%clk 0:02:31]}  Nh6 {[%clk 0:01:52]} 10. c4 {[%clk 0:02:28]}  Qa5+ {[%clk 0:01:50]} 11. Qd2 {[%clk 0:02:24]}  Qxd2+ {[%clk 0:01:50]} 12. Nbxd2 {[%clk 0:02:23]}  Nb6 {[%clk 0:01:46]} 13. a4 {[%clk 0:02:20]}  a5 {[%clk 0:01:25]} 14. Be2 {[%clk 0:02:01]}  Be7 {[%clk 0:01:23]} 15. O-O {[%clk 0:02:00]}  O-O {[%clk 0:00:52]} 16. Rfd1 {[%clk 0:01:57]}  Rd8 {[%clk 0:00:50]} 17. Bc3 {[%clk 0:01:51]}  Nf5 {[%clk 0:00:47]} 18. Nb3 {[%clk 0:01:18]}  Rxd1+ {[%clk 0:00:37]} 19. Rxd1 {[%clk 0:01:19]}  Nxa4 {[%clk 0:00:34]} 20. Bxa5 {[%clk 0:01:19]}  b6 {[%clk 0:00:26]} 21. Be1 {[%clk 0:01:16]}  Nb2 {[%clk 0:00:17]} 22. Rb1 {[%clk 0:01:05]}  Na4 {[%clk 0:00:17]} 23. g4 {[%clk 0:01:01]}  Nh4 {[%clk 0:00:16]} 24. Nxh4 {[%clk 0:00:48]}  Bxh4 {[%clk 0:00:17]} 25. Bf3 {[%clk 0:00:47]}  Ra7 {[%clk 0:00:14]} 26. Ra1 {[%clk 0:00:47]}  h5 {[%clk 0:00:12]} 27. gxh5 {[%clk 0:00:44]}  Bg5 {[%clk 0:00:12]} 28. Ba5 {[%clk 0:00:38]}  bxa5 {[%clk 0:00:07]} 29. Rxa4 {[%clk 0:00:37]}  Bf4 {[%clk 0:00:06]} 30. Rxa5 {[%clk 0:00:35]}  Rxa5 {[%clk 0:00:06]} 31. Nxa5 {[%clk 0:00:36]}  Bxe5 {[%clk 0:00:06]} 32. b6 {[%clk 0:00:34]}  Kf8 {[%clk 0:00:07]} 33. b7 {[%clk 0:00:34]}  Bd7 {[%clk 0:00:07]} 34. Nb3 {[%clk 0:00:26]}  Ke7 {[%clk 0:00:06]} 35. Nxc5 {[%clk 0:00:26]}  Kd8 {[%clk 0:00:05]} 36. Na6 {[%clk 0:00:26]}  Ba4 {[%clk 0:00:05]} 37. b8=Q+ {[%clk 0:00:25]}  Bxb8 {[%clk 0:00:06]} 38. Nxb8 {[%clk 0:00:25]}  Kc7 {[%clk 0:00:06]} 39. Na6+ {[%clk 0:00:25]}  Kb6 {[%clk 0:00:07]} 40. Nb4 {[%clk 0:00:25]}  Kc5 {[%clk 0:00:08]} 41. Nd3+ {[%clk 0:00:25]}  Kd4 {[%clk 0:00:08]} 42. Nf4 {[%clk 0:00:20]}  Kxc4 {[%clk 0:00:07]} 43. Kg2 {[%clk 0:00:20]}  Kd4 {[%clk 0:00:07]} 44. Ne2+ {[%clk 0:00:20]}  Ke5 {[%clk 0:00:07]} 45. Kg3 {[%clk 0:00:20]}  f5 {[%clk 0:00:06]} 46. Nf4 {[%clk 0:00:20]}  Kf6 {[%clk 0:00:06]} 47. Ng6 {[%clk 0:00:18]}  e5 {[%clk 0:00:05]} 48. Bd5 {[%clk 0:00:16]}  Be8 {[%clk 0:00:05]} 49. h4 {[%clk 0:00:14]}  Bxg6 {[%clk 0:00:05]} 50. hxg6 {[%clk 0:00:14]}  Kxg6 {[%clk 0:00:06]} 51. Bc4 {[%clk 0:00:12]}  Kh5 {[%clk 0:00:06]} 52. Be2+ {[%clk 0:00:12]}  Kg6 {[%clk 0:00:06]} 53. Kf3 {[%clk 0:00:11]}  Kh5 {[%clk 0:00:05]} 54. Kg3+ {[%clk 0:00:12]}  Kg6 {[%clk 0:00:05]} 55. Kh3 {[%clk 0:00:11]}  Kf6 {[%clk 0:00:05]} 56. Kg2 {[%clk 0:00:08]}  e4 {[%clk 0:00:05]} 57. Kg3 {[%clk 0:00:07]}  Ke5 {[%clk 0:00:05]} 58. h5 {[%clk 0:00:07]}  f4+ {[%clk 0:00:04]} 59. Kg4 {[%clk 0:00:07]}  f3 {[%clk 0:00:04]} 60. Bf1 {[%clk 0:00:07]}  Kd5 {[%clk 0:00:04]} 61. Kf4 {[%clk 0:00:05]}  Kd4 {[%clk 0:00:04]} 62. Kg5 {[%clk 0:00:04]}  e3 {[%clk 0:00:03]} 63. fxe3+ {[%clk 0:00:04]}  Kxe3 {[%clk 0:00:04]} 64. Kg6 {[%clk 0:00:05]}  Kf2 {[%clk 0:00:03]} 65. Bb5 {[%clk 0:00:04]}  Kg3 {[%clk 0:00:03]} 66. Kxg7 {[%clk 0:00:05]}  Kg4 {[%clk 0:00:04]} 67. h6 {[%clk 0:00:05]}  Kf5 {[%clk 0:00:04]} 68. h7 {[%clk 0:00:06]}  Kf4 {[%clk 0:00:05]} 69. h8=Q {[%clk 0:00:06]}  f2 {[%clk 0:00:06]} 70. Qh4+ {[%clk 0:00:05]}  Ke3 {[%clk 0:00:06]} 71. Qe7+ {[%clk 0:00:05]}  Kf4 {[%clk 0:00:05]} 72. Qf6+ {[%clk 0:00:05]}  Kg3 {[%clk 0:00:06]} 73. Kg6 {[%clk 0:00:04]}  Kh2 {[%clk 0:00:05]} 74. Kg5 {[%clk 0:00:03]}  f1=Q {[%clk 0:00:04]} 75. Bxf1 {[%clk 0:00:02]}  Kg3 {[%clk 0:00:04]} 76. Qf4# {[%clk 0:00:02]} 1-0


[Site "https://www.chess.com"]

[Event "Titled Tuesday Blitz April 12 Late 2022"]
[White "Begmuratov, Khumoyun"]
[Black "Pichot, Alan"]
[WhiteFideId "14210207"]
[BlackFideId "110973"]
[WhiteElo "1961"]
[BlackElo "2579"]
[Result "1/2-1/2"]
[Round "05"]
[TimeControl "180+1"]
[Date "2022.04.12"]
[WhiteClock "0:00:05"]
[BlackClock "0:00:16"]

1. e4 {[%clk 0:03:00]}  c5 {[%clk 0:02:53]} 2. Nf3 {[%clk 0:03:00]}  e6 {[%clk 0:02:53]} 3. d4 {[%clk 0:02:58]}  cxd4 {[%clk 0:02:54]} 4. Nxd4 {[%clk 0:02:59]}  Nc6 {[%clk 0:02:55]} 5. c4 {[%clk 0:02:57]}  Nf6 {[%clk 0:02:53]} 6. f3 {[%clk 0:02:53]}  d5 {[%clk 0:02:52]} 7. cxd5 {[%clk 0:02:52]}  exd5 {[%clk 0:02:50]} 8. Bb5 {[%clk 0:02:43]}  Bd7 {[%clk 0:02:41]} 9. exd5 {[%clk 0:02:33]}  Nxd5 {[%clk 0:02:36]} 10. O-O {[%clk 0:02:21]}  Be7 {[%clk 0:02:33]} 11. Nc3 {[%clk 0:02:05]}  Nxc3 {[%clk 0:02:27]} 12. bxc3 {[%clk 0:02:06]}  Nxd4 {[%clk 0:02:28]} 13. Bxd7+ {[%clk 0:02:05]}  Qxd7 {[%clk 0:02:29]} 14. cxd4 {[%clk 0:02:01]}  O-O {[%clk 0:02:27]} 15. Be3 {[%clk 0:01:58]}  Rfd8 {[%clk 0:02:26]} 16. Qb3 {[%clk 0:01:58]}  Bf6 {[%clk 0:02:24]} 17. Rfd1 {[%clk 0:01:56]}  Qd5 {[%clk 0:02:19]} 18. Qxd5 {[%clk 0:01:41]}  Rxd5 {[%clk 0:02:20]} 19. Rac1 {[%clk 0:01:42]}  b6 {[%clk 0:02:02]} 20. Rc7 {[%clk 0:01:38]}  Ra5 {[%clk 0:01:55]} 21. Rd2 {[%clk 0:01:23]}  Rd8 {[%clk 0:01:55]} 22. Kf2 {[%clk 0:01:21]}  Ra3 {[%clk 0:01:55]} 23. d5 {[%clk 0:01:11]}  Be5 {[%clk 0:01:50]} 24. d6 {[%clk 0:01:05]}  f6 {[%clk 0:01:49]} 25. Rc6 {[%clk 0:01:03]}  Bxh2 {[%clk 0:01:37]} 26. f4 {[%clk 0:00:53]}  Bg1+ {[%clk 0:01:12]} 27. Kxg1 {[%clk 0:00:53]}  Rxe3 {[%clk 0:01:13]} 28. Rc7 {[%clk 0:00:51]}  Re4 {[%clk 0:00:44]} 29. g3 {[%clk 0:00:45]}  a5 {[%clk 0:00:42]} 30. Rb7 {[%clk 0:00:44]}  h5 {[%clk 0:00:19]} 31. Kf2 {[%clk 0:00:42]}  Kh7 {[%clk 0:00:16]} 32. Kf3 {[%clk 0:00:41]}  Re6 {[%clk 0:00:14]} 33. Rxb6 {[%clk 0:00:40]}  Kg6 {[%clk 0:00:15]} 34. Rd5 {[%clk 0:00:39]}  Kh6 {[%clk 0:00:13]} 35. f5 {[%clk 0:00:32]}  Re1 {[%clk 0:00:13]} 36. Rxa5 {[%clk 0:00:31]}  Rf1+ {[%clk 0:00:14]} 37. Kg2 {[%clk 0:00:31]}  Rd1 {[%clk 0:00:13]} 38. Raa6 {[%clk 0:00:28]}  Rd2+ {[%clk 0:00:14]} 39. Kf3 {[%clk 0:00:28]}  Rd3+ {[%clk 0:00:13]} 40. Kf4 {[%clk 0:00:24]}  Rc8 {[%clk 0:00:13]} 41. Rb4 {[%clk 0:00:21]}  Rc5 {[%clk 0:00:10]} 42. Ra8 {[%clk 0:00:18]}  Kh7 {[%clk 0:00:10]} 43. d7 {[%clk 0:00:14]}  Rcd5 {[%clk 0:00:08]} 44. Ra7 {[%clk 0:00:06]}  Kh6 {[%clk 0:00:03]} 45. Ra8 {[%clk 0:00:04]}  Kh7 {[%clk 0:00:03]} 46. Ra7 {[%clk 0:00:04]}  Rxd7 {[%clk 0:00:03]} 47. Rxd7 {[%clk 0:00:04]}  Rxd7 {[%clk 0:00:04]} 48. a4 {[%clk 0:00:04]}  Rd1 {[%clk 0:00:04]} 49. Rb6 {[%clk 0:00:03]}  Rf1+ {[%clk 0:00:04]} 50. Ke4 {[%clk 0:00:02]}  Ra1 {[%clk 0:00:05]} 51. Ra6 {[%clk 0:00:03]}  Kh6 {[%clk 0:00:06]} 52. Kf4 {[%clk 0:00:03]}  Rf1+ {[%clk 0:00:06]} 53. Ke4 {[%clk 0:00:03]}  Kg5 {[%clk 0:00:07]} 54. Ra7 {[%clk 0:00:04]}  Re1+ {[%clk 0:00:07]} 55. Kf3 {[%clk 0:00:04]}  Kxf5 {[%clk 0:00:04]} 56. Rxg7 {[%clk 0:00:05]}  Ra1 {[%clk 0:00:04]} 57. Ra7 {[%clk 0:00:05]}  Ra3+ {[%clk 0:00:05]} 58. Kg2 {[%clk 0:00:05]}  Kg4 {[%clk 0:00:06]} 59. Rg7+ {[%clk 0:00:05]}  Kf5 {[%clk 0:00:06]} 60. Ra7 {[%clk 0:00:06]}  Kg5 {[%clk 0:00:05]} 61. Kh3 {[%clk 0:00:05]}  h4 {[%clk 0:00:04]} 62. Rg7+ {[%clk 0:00:04]}  Kh6 {[%clk 0:00:03]} 63. Rg4 {[%clk 0:00:02]}  hxg3 {[%clk 0:00:03]} 64. Rxg3 {[%clk 0:00:02]}  Rxa4 {[%clk 0:00:03]} 65. Rf3 {[%clk 0:00:03]}  Kg5 {[%clk 0:00:04]} 66. Kg3 {[%clk 0:00:03]}  f5 {[%clk 0:00:04]} 67. Rb3 {[%clk 0:00:03]}  Rg4+ {[%clk 0:00:04]} 68. Kf3 {[%clk 0:00:04]}  Ra4 {[%clk 0:00:05]} 69. Rb8 {[%clk 0:00:04]}  Ra3+ {[%clk 0:00:05]} 70. Kf2 {[%clk 0:00:04]}  Kg4 {[%clk 0:00:06]} 71. Rb4+ {[%clk 0:00:04]}  f4 {[%clk 0:00:07]} 72. Rb2 {[%clk 0:00:05]}  Rh3 {[%clk 0:00:06]} 73. Kg2 {[%clk 0:00:04]}  Rg3+ {[%clk 0:00:07]} 74. Kf2 {[%clk 0:00:05]}  Rc3 {[%clk 0:00:07]} 75. Kg2 {[%clk 0:00:04]}  Rh3 {[%clk 0:00:06]} 76. Rc2 {[%clk 0:00:03]}  Ra3 {[%clk 0:00:02]} 77. Rb2 {[%clk 0:00:03]}  Re3 {[%clk 0:00:02]} 78. Rc2 {[%clk 0:00:03]}  Rh3 {[%clk 0:00:03]} 79. Rb2 {[%clk 0:00:03]}  f3+ {[%clk 0:00:04]} 80. Kg1 {[%clk 0:00:03]}  Kg3 {[%clk 0:00:05]} 81. Rg2+ {[%clk 0:00:03]}  Kf4 {[%clk 0:00:05]} 82. Rb2 {[%clk 0:00:04]}  Rg3+ {[%clk 0:00:06]} 83. Kf1 {[%clk 0:00:04]}  Rg5 {[%clk 0:00:06]} 84. Rb4+ {[%clk 0:00:03]}  Kg3 {[%clk 0:00:07]} 85. Rb8 {[%clk 0:00:03]}  Rg4 {[%clk 0:00:07]} 86. Rc8 {[%clk 0:00:03]}  Rg7 {[%clk 0:00:08]} 87. Rd8 {[%clk 0:00:03]}  Re7 {[%clk 0:00:08]} 88. Rg8+ {[%clk 0:00:03]}  Kf4 {[%clk 0:00:09]} 89. Rf8+ {[%clk 0:00:03]}  Ke3 {[%clk 0:00:09]} 90. Rb8 {[%clk 0:00:04]}  Re4 {[%clk 0:00:09]} 91. Rb3+ {[%clk 0:00:04]}  Kf4 {[%clk 0:00:10]} 92. Rb8 {[%clk 0:00:03]}  Ra4 {[%clk 0:00:11]} 93. Rf8+ {[%clk 0:00:03]}  Ke3 {[%clk 0:00:11]} 94. Re8+ {[%clk 0:00:03]}  Re4 {[%clk 0:00:12]} 95. Rxe4+ {[%clk 0:00:03]}  Kxe4 {[%clk 0:00:13]} 96. Kf2 {[%clk 0:00:04]}  Kf4 {[%clk 0:00:14]} 97. Kf1 {[%clk 0:00:05]}  Ke3 {[%clk 0:00:15]} 98. Ke1 {[%clk 0:00:05]}  f2+ {[%clk 0:00:16]} 99. Kf1 {[%clk 0:00:05]}  Kf3 {[%clk 0:00:16]} 1/2-1/2


[Site "https://www.chess.com"]

[Event "Titled Tuesday Blitz April 12 Late 2022"]
[White "Bluebaum, Matthias"]
[Black "Papasimakopoulos, Alexandros"]
[WhiteFideId "24651516"]
[BlackFideId "4244125"]
[WhiteElo "2550"]
[BlackElo "2340"]
[Result "1-0"]
[Round "05"]
[TimeControl "180+1"]
[Date "2022.04.12"]
[WhiteClock "0:02:54"]
[BlackClock "0:01:16"]

1. d4 {[%clk 0:03:00]}  e6 {[%clk 0:02:37]} 2. c4 {[%clk 0:03:00]}  Nf6 {[%clk 0:02:36]} 3. Nc3 {[%clk 0:03:00]}  Bb4 {[%clk 0:02:35]} 4. e3 {[%clk 0:03:01]}  O-O {[%clk 0:02:34]} 5. Bd2 {[%clk 0:03:01]}  b6 {[%clk 0:02:33]} 6. Bd3 {[%clk 0:03:01]}  Bb7 {[%clk 0:02:33]} 7. Nf3 {[%clk 0:03:02]}  Bxc3 {[%clk 0:02:33]} 8. Bxc3 {[%clk 0:03:03]}  Ne4 {[%clk 0:02:33]} 9. Bxe4 {[%clk 0:03:03]}  Bxe4 {[%clk 0:02:33]} 10. d5 {[%clk 0:03:04]}  c5 {[%clk 0:02:10]} 11. Nd2 {[%clk 0:03:03]}  Bg6 {[%clk 0:02:06]} 12. h4 {[%clk 0:03:04]}  h6 {[%clk 0:02:00]} 13. Qg4 {[%clk 0:03:03]}  h5 {[%clk 0:01:57]} 14. Qf3 {[%clk 0:03:02]}  exd5 {[%clk 0:01:55]} 15. cxd5 {[%clk 0:03:03]}  d6 {[%clk 0:01:54]} 16. g4 {[%clk 0:03:03]}  hxg4 {[%clk 0:01:49]} 17. Qxg4 {[%clk 0:03:04]}  Qc8 {[%clk 0:01:46]} 18. Qg3 {[%clk 0:03:02]}  Qf5 {[%clk 0:01:18]} 19. h5 {[%clk 0:03:02]}  Qxd5 {[%clk 0:01:18]} 20. e4 {[%clk 0:02:58]}  Re8 {[%clk 0:01:19]} 21. hxg6 {[%clk 0:02:54]}  Rf8 {[%clk 0:01:16]} 1-0


[Site "https://www.chess.com"]